[Event "EYCC Girls U14 2018"]
[Site "Riga"]
[Date "2018.08.20"]
[Round "1"]
[White "Adamczyk, Zuzanna"]
[Black "Eizaguerri Floris, Maria"]
[Result "1/2-1/2"]
[ECO "B44"]
[WhiteElo "1717"]
[BlackElo "2065"]
[Annotator "NA"]
[PlyCount "85"]
[EventDate "2018.08.20"]
[EventType "swiss"]
[EventCountry "LAT"]
[SourceTitle "playchess.com"]
[Source "ChessBase"]
[SourceQuality "1"]
[TimeControl "40/5400+30:1800+30"]

1. e4 {[%emt 0:00:34]} c5 {[%emt 0:00:40]} 2. Nf3 {[%emt 0:00:42]} e6 {[%emt 0:00:39]} 3. d4 {[%emt 0:00:58]} cxd4 {[%emt 0:00:40]} 4. Nxd4 {[%emt 0:00:00]} Nc6 5. Nb5 {[%emt 0:00:00]} d6 {[%emt 0:00:00]} 6. c4 {[%emt 0:00:39]} a6 {[%emt 0:02:48]} 7. Nd4 {[%emt 0:03:20]} Qc7 {[%emt 0:01:07]} 8. Nc3 {[%emt 0:08:01]} Nf6 {[%emt 0:01:37]} 9. Be3 {[%emt 0:02:49]} Be7 {[%emt 0:02:27]} 10. Be2 {[%emt 0:03:54] LiveBook: 8 Games} O-O {[%emt 0:00:17]} 11. O-O $14 {[%emt 0:00:59]} Ne5 {[%emt 0:06:23]} 12. Rc1 {[%emt 0:03:10]} b6 13. f3 {[%emt 0:07:04]} Bb7 {[%emt 0:03:23]} 14. Qd2 {[%emt 0:02:31]} Rac8 {[%emt 0:02:14]} 15. Rfd1 {[%emt 0:05:24]} Qb8 {[%emt 0:03:59]} 16. b3 Rfd8 {[%emt 0:10:30]} 17. Qe1 {[%emt 0:12:52]} d5 {[%emt 0:03:05]} 18. cxd5 {[%emt 0:09:12]} exd5 {[%emt 0:08:04]} 19. Nf5 {[%emt 0:24:49]} Ba3 20. Bxb6 {[%emt 0:01:56]} Re8 {[%emt 0:12:07]} 21. Rc2 {[%emt 0:04:49]} dxe4 22. f4 Ng6 {[%emt 0:07:00]} 23. g3 {[%emt 0:02:04]} Bb4 {[%emt 0:08:48]} 24. Bd4 {[%emt 0:02:21]} Rc6 {[%emt 0:03:20]} 25. Bc4 {[%emt 0:02:19]} h5 {[%emt 0:10:08]} 26. Qe2 h4 27. Ne3 {[%emt 0:02:30]} hxg3 {[%emt 0:08:47]} 28. hxg3 {[%emt 0:00:07]} Bc5 {[%emt 0:03:58]} 29. Rcd2 {[%emt 0:01:33]} Bxd4 {[%emt 0:01:52]} 30. Rxd4 {[%emt 0:00:03]} Qc8 {[%emt 0:00:31]} 31. Kg2 {[%emt 0:01:46]} Rc5 {[%emt 0:01:10]} 32. Ncd5 {[%emt 0:01:58]} Nxd5 {[%emt 0:01:00]} 33. Bxd5 {[%emt 0:00:30]} Bxd5 {[%emt 0:00:16]} 34. Rxd5 {[%emt 0:00:27]} Rxd5 {[%emt 0:00:47]} 35. Rxd5 {[%emt 0:00:16]} Rd8 {[%emt 0:00:49]} 36. Qd2 {[%emt 0:00:52]} Rxd5 {[%emt 0:00:25]} 37. Qxd5 {[%emt 0:00:16]} Qe8 {[%emt 0:00:39]} 38. Qc4 {[%emt 0:00:54]} a5 {[%emt 0:00:18]} 39. a4 {[%emt 0:00:23]} Nf8 {[%emt 0:00:28]} 40. Qd5 {[%emt 0:00:27]} Qb8 41. Qxe4 {[%emt 0:10:07]} Qxb3 {[%emt 0:00:48]} 42. f5 {[%emt 0:02:27]} Qb2+ 43. Kf3 1/2-1/2

[Event "EYCC Girls U14 2018"]
[Site "Riga"]
[Date "2018.08.20"]
[Round "1"]
[White "Elma, Muge"]
[Black "Majoros, Rozsa Evelin"]
[Result "1-0"]
[ECO "E91"]
[WhiteElo "1705"]
[BlackElo "2051"]
[Annotator "NA"]
[PlyCount "57"]
[EventDate "2018.08.20"]
[EventType "swiss"]
[EventCountry "LAT"]
[SourceTitle "playchess.com"]
[Source "ChessBase"]
[SourceQuality "1"]
[TimeControl "40/5400+30:1800+30"]

1. d4 {[%emt 0:00:00]} Nf6 {[%emt 0:00:00]} 2. c4 {[%emt 0:00:00]} d6 {[%emt 0:00:10]} 3. Nf3 {[%emt 0:00:03]} g6 {[%emt 0:01:37]} 4. Nc3 {[%emt 0:01:47]} Bg7 {[%emt 0:00:39]} 5. e4 {[%emt 0:01:24]} O-O $14 {[%emt 0:03:27] LiveBook: 38949 Games} 6. Be2 {[%emt 0:05:23]} Nbd7 {[%emt 0:03:15]} 7. O-O {[%emt 0:01:34]} e5 {[%emt 0:01:15]} 8. dxe5 {[%emt 0:04:35]} dxe5 {[%emt 0:01:36]} 9. Qc2 {[%emt 0:01:23]} c6 {[%emt 0:07:21]} 10. b4 {[%emt 0:11:14]} Qc7 {[%emt 0:06:26]} 11. Bb2 {[%emt 0:04:33]} Re8 {[%emt 0:05:06]} 12. Rfd1 {[%emt 0:03:37]} Bf8 {[%emt 0:06:50]} 13. a3 {[%emt 0:01:52]} a5 {[%emt 0:05:12]} 14. Qb3 {[%emt 0:03:15]} Nb8 {[%emt 0:13:05]} 15. c5 {[%emt 0:10:31]} b6 {[%emt 0:10:53]} 16. cxb6 {[%emt 0:08:44]} Qxb6 {[%emt 0:04:45]} 17. Bc4 {[%emt 0:05:32]} Ra7 {[%emt 0:03:59]} 18. Ng5 {[%emt 0:12:24]} Ree7 {[%emt 0:04:27]} 19. Na4 {[%emt 0:02:23]} Qc7 {[%emt 0:04:22]} 20. Nc5 {[%emt 0:05:58]} Na6 {[%emt 0:05:15]} 21. Nd3 {[%emt 0:03:34]} Kg7 {[%emt 0:09:17]} 22. Nf3 {[%emt 0:08:43]} axb4 {[%emt 0:01:17]} 23. axb4 {[%emt 0:00:16]} Qb6 {[%emt 0:00:38]} 24. Bxe5 {[%emt 0:00:22]} Be6 {[%emt 0:00:34]} 25. Qc3 {[%emt 0:00:35]} Bxc4 {[%emt 0:00:23]} 26. Bxf6+ {[%emt 0:00:07]} Kg8 {[%emt 0:00:25]} 27. Bxe7 {[%emt 0:00:09]} Bg7 {[%emt 0:00:36]} 28. Qxc4 {[%emt 0:01:07]} Nxb4 {[%emt 0:00:36]} 29. Rxa7 {[%emt 0:00:23]} 1-0

[Event "EYCC Girls U14 2018"]
[Site "Riga"]
[Date "2018.08.21"]
[Round "2"]
[White "Mironenko, Galina"]
[Black "Zelenskaya, Anastasiya"]
[Result "1-0"]
[ECO "A06"]
[WhiteElo "1998"]
[BlackElo "1783"]
[Annotator "NA RC"]
[PlyCount "109"]
[EventDate "2018.08.20"]
[EventType "swiss"]
[EventCountry "LAT"]
[SourceTitle "playchess.com"]
[Source "ChessBase"]
[SourceQuality "1"]
[TimeControl "40/5400+30:1800+30"]

1. Nf3 {[%emt 0:00:00]} d5 {[%emt 0:00:00]} 2. g3 {[%emt 0:00:00]} Nf6 {[%emt 0:00:00]} 3. Bg2 {[%emt 0:00:00]} g6 {[%emt 0:00:04]} 4. O-O {[%emt 0:00:00]} Bg7 {[%emt 0:00:17]} 5. d4 {[%emt 0:00:13]} O-O {[%emt 0:00:15]} 6. Nbd2 {[%emt 0:00:40]} c5 {[%emt 0:05:06]} 7. e3 {[%emt 0:07:21]} Qc7 $11 {[%emt 0:06:13]} 8. Ne5 {[%emt 0:07:32]} Nc6 {[%emt 0:06:13]} 9. Ndf3 {[%emt 0:02:47]} Ne4 {[%emt 0:02:55]} 10. c4 {[%emt 0:15:26]} Be6 {[%emt 0:15:32]} 11. Nxc6 {[%emt 0:07:19]} bxc6 {[%emt 0:01:26]} 12. dxc5 {[%emt 0:04:37]} dxc4 {[%emt 0:06:40]} 13. Qc2 {[%emt 0:07:36]} c3 {[%emt 0:08:45]} 14. Nd4 {[%emt 0:01:43]} Nxc5 {[%emt 0:20:51]} 15. Qxc3 {[%emt 0:11:05]} Qb6 {[%emt 0:01:10]} 16. b4 {[%emt 0:05:47]} Na4 {[%emt 0:15:42]} 17. Qxc6 {[%emt 0:06:03]} Qxb4 {[%emt 0:00:55]} 18. a3 {[%emt 0:01:12]} Qa5 {[%emt 0:00:59]} 19. Bd2 {[%emt 0:06:16]} Qxd2 {[%emt 0:00:33]} 20. Qxa4 {[%emt 0:00:05]} Rab8 {[%emt 0:02:27]} 21. Rad1 {[%emt 0:01:05]} Qa2 {[%emt 0:00:47]} 22. Nxe6 {[%emt 0:01:37]} Qxe6 {[%emt 0:00:09]} 23. Qxa7 {[%emt 0:00:08]} Rb6 {[%emt 0:01:17]} 24. Qa5 {[%emt 0:01:55]} Rfb8 {[%emt 0:00:21]} 25. Qc5 {[%emt 0:03:05]} Rc8 {[%emt 0:00:41]} 26. Qa5 {[%emt 0:03:00]} Bc3 {[%emt 0:00:37]} 27. Qa7 {[%emt 0:01:58]} Ra6 {[%emt 0:00:34]} 28. Qb7 {[%emt 0:00:08]} Rxa3 {[%emt 0:01:00]} 29. Bd5 {[%emt 0:00:09]} Qa6 {[%emt 0:01:35]} 30. Qxa6 {[%emt 0:01:52]} Rxa6 {[%emt 0:00:05]} 31. Bb7 {[%emt 0:00:04]} Rac6 {[%emt 0:01:09]} 32. Bxc6 {[%emt 0:00:28]} Rxc6 {[%emt 0:00:04]} 33. Rd8+ {[%emt 0:01:04]} Kg7 {[%emt 0:00:04]} 34. Rc1 {[%emt 0:01:14]} Ba5 {[%emt 0:01:46]} 35. Rxc6 {[%emt 0:00:16]} Bxd8 {[%emt 0:00:04]} 36. f4 {[%emt 0:00:16]} e6 {[%emt 0:00:38]} 37. e4 {[%emt 0:01:48]} h6 {[%emt 0:00:45]} 38. Kf2 {[%emt 0:00:27]} Bf6 {[%emt 0:00:36]} 39. e5 {[%emt 0:00:50]} Bd8 {[%emt 0:00:13]} 40. Kf3 {[%emt 0:00:00]} h5 {[%emt 0:00:00]} 41. Ke4 {[%emt 0:02:52]} Ba5 {[%emt 0:08:52]} 42. Kd4 {[%emt 0:01:55]} Bb4 {[%emt 0:02:04]} 43. Rc2 {[%emt 0:01:01]} Be7 {[%emt 0:01:45]} 44. Kc4 {[%emt 0:00:23]} g5 {[%emt 0:00:51]} 45. Kd4 {[%emt 0:01:57]} Kg6 {[%emt 0:01:56]} 46. Ke4 {[%emt 0:00:34]} g4 {[%emt 0:03:12]} 47. Rc6 {[%emt 0:00:43]} f5+ {[%emt 0:04:53]} 48. exf6 {[%emt 0:02:08]} Kxf6 {[%emt 0:00:09]} 49. f5 {[%emt 0:00:08]} Kg7 {[%emt 0:01:33]} 50. Rxe6 Bc5 51. Kf4 {[%emt 0:04:58]} Bg1 {[%emt 0:00:44]} 52. Re1 {[%emt 0:00:24]} Bf2 {[%emt 0:00:25]} 53. Re2 {[%emt 0:00:20]} Bd4 {[%emt 0:00:48]} 54. Kg5 {[%emt 0:00:13]} Bf6+ {[%emt 0:00:22]} 55. Kxh5 {[%emt 0:00:11]} 1-0

[Event "EYCC Girls U14 2018"]
[Site "Riga"]
[Date "2018.08.21"]
[Round "2"]
[White "Wikar, Martyna"]
[Black "Pipiras, Filipa Fortuna"]
[Result "1-0"]
[ECO "C44"]
[WhiteElo "1974"]
[BlackElo "1770"]
[Annotator "NA RC"]
[PlyCount "81"]
[EventDate "2018.08.20"]
[EventType "swiss"]
[EventCountry "LAT"]
[SourceTitle "playchess.com"]
[Source "ChessBase"]
[SourceQuality "1"]
[TimeControl "40/5400+30:1800+30"]

1. e4 {[%emt 0:00:00]} e5 {[%emt 0:00:09]} 2. Nf3 {[%emt 0:00:02]} Nc6 {[%emt 0:00:36]} 3. d4 {[%emt 0:00:45]} exd4 {[%emt 0:01:02]} 4. Bc4 {[%emt 0:00:21]} Bc5 {[%emt 0:01:16]} 5. c3 {[%emt 0:01:03]} Nf6 {[%emt 0:03:24]} 6. O-O {[%emt 0:00:50]} Nxe4 {[%emt 0:07:17]} 7. cxd4 {[%emt 0:00:19]} Bb6 $16 {[%emt 0:04:50]} (7... d5 $15 {keeps the upper hand.}) 8. Re1 {[%emt 0:05:38]} O-O {[%emt 0:04:01]} 9. Rxe4 {[%emt 0:13:21]} d5 {[%emt 0:00:37]} 10. Bg5 {[%emt 0:03:25]} f6 {[%emt 0:09:25]} 11. Bb3 {[%emt 0:08:26]} fxg5 {[%emt 0:04:17]} 12. Nc3 {[%emt 0:04:30]} Kh8 {[%emt 0:02:07]} 13. Nxd5 {[%emt 0:03:03]} Bf5 {[%emt 0:01:27]} 14. Re3 {[%emt 0:07:23]} Bg4 {[%emt 0:10:03]} 15. Nxb6 {[%emt 0:02:19]} axb6 {[%emt 0:01:27]} 16. d5 {[%emt 0:01:33]} Bxf3 {[%emt 0:00:30]} 17. Rxf3 {[%emt 0:00:48]} Rxf3 {[%emt 0:00:19]} 18. Qxf3 {[%emt 0:00:23]} Nd4 {[%emt 0:00:18]} 19. Qd3 {[%emt 0:01:32]} Nxb3 {[%emt 0:02:16]} 20. Qxb3 {[%emt 0:00:08]} h6 {[%emt 0:01:26]} 21. h3 {[%emt 0:05:13]} Qd6 {[%emt 0:00:38]} 22. a3 {[%emt 0:02:32]} Rd8 {[%emt 0:04:40]} 23. Rd1 {[%emt 0:01:25]} Qf6 {[%emt 0:03:24]} 24. Rc1 {[%emt 0:04:01]} Qf7 {[%emt 0:07:57]} 25. Qc4 {[%emt 0:06:53]} Rd7 {[%emt 0:04:18]} 26. b4 {[%emt 0:01:33]} Qf6 {[%emt 0:02:01]} 27. Re1 {[%emt 0:05:38]} Qf7 {[%emt 0:05:59]} 28. Re6 {[%emt 0:03:18]} Qf8 {[%emt 0:11:06]} 29. Qe4 {[%emt 0:00:48]} Rd8 {[%emt 0:00:24]} 30. Qe5 {[%emt 0:01:19]} Kg8 {[%emt 0:00:47]} 31. Re7 {[%emt 0:01:47]} Kh7 {[%emt 0:02:39]} 32. Rxc7 {[%emt 0:02:10]} Re8 {[%emt 0:00:33]} 33. Rxg7+ {[%emt 0:00:53]} Qxg7 {[%emt 0:00:17]} 34. Qxe8 {[%emt 0:00:06]} Qa1+ {[%emt 0:00:14]} 35. Kh2 {[%emt 0:00:06]} Qxa3 {[%emt 0:00:52]} 36. Qf7+ {[%emt 0:01:57]} Kh8 {[%emt 0:00:16]} 37. d6 {[%emt 0:00:26]} Qxb4 {[%emt 0:00:29]} 38. Qf6+ {[%emt 0:00:43]} Kh7 {[%emt 0:00:20]} 39. d7 {[%emt 0:00:08]} g4 {[%emt 0:01:11]} 40. Qf7+ {[%emt 0:00:00]} Kh8 {[%emt 0:00:00]} 41. d8=Q+ {[%emt 0:00:19]} 1-0

[Event "EYCC Girls U14 2018"]
[Site "Riga"]
[Date "2018.08.21"]
[Round "2"]
[White "Nur Mukhametova, Alisa"]
[Black "Garifullina, Leya"]
[Result "1/2-1/2"]
[ECO "E07"]
[WhiteElo "1856"]
[BlackElo "2106"]
[Annotator "NA RC"]
[PlyCount "60"]
[EventDate "2018.08.20"]
[EventType "swiss"]
[EventCountry "LAT"]
[SourceTitle "playchess.com"]
[Source "ChessBase"]
[SourceQuality "1"]
[TimeControl "40/5400+30:1800+30"]

1. Nf3 {[%emt 0:00:00]} d5 {[%emt 0:00:00]} 2. g3 {[%emt 0:00:00]} Nf6 {[%emt 0:00:09]} 3. Bg2 {[%emt 0:00:00]} e6 {[%emt 0:00:32]} 4. O-O {[%emt 0:00:00]} Be7 {[%emt 0:00:30]} 5. d4 {[%emt 0:00:28]} O-O {[%emt 0:00:41]} 6. c4 {[%emt 0:00:32]} Nbd7 {[%emt 0:00:37]} 7. b3 {[%emt 0:05:53]} c6 {[%emt 0:03:09]} 8. Bb2 {[%emt 0:01:27]} b6 {[%emt 0:01:49]} 9. Nbd2 {[%emt 0:02:45]} Bb7 {[%emt 0:00:50] LiveBook: 135 Games} 10. Re1 {[%emt 0:01:45]} c5 {[%emt 0:02:17]} 11. Ne5 {[%emt 0:06:36]} cxd4 $11 {[%emt 0:06:07]} 12. Bxd4 {[%emt 0:01:32]} Nxe5 {[%emt 0:09:26]} 13. Bxe5 {[%emt 0:01:04]} Qd7 {[%emt 0:02:04]} 14. Qc2 {[%emt 0:04:09]} dxc4 {[%emt 0:02:01]} 15. Bxb7 {[%emt 0:01:28]} Qxb7 {[%emt 0:03:32]} 16. Nxc4 {[%emt 0:01:12]} Ng4 {[%emt 0:03:46]} 17. Bd4 {[%emt 0:02:37]} Qd5 {[%emt 0:03:33]} 18. Qb2 {[%emt 0:21:21]} Qh5 {[%emt 0:04:20]} 19. h4 {[%emt 0:02:03]} Bxh4 {[%emt 0:06:53]} 20. gxh4 {[%emt 0:01:02]} Qxh4 {[%emt 0:00:12]} 21. e3 {[%emt 0:02:53]} b5 {[%emt 0:11:15]} 22. Ne5 {[%emt 0:05:31]} f6 {[%emt 0:10:24]} 23. Nxg4 {[%emt 0:03:34]} Qxg4+ {[%emt 0:00:03]} 24. Kh2 {[%emt 0:00:54]} Qh4+ {[%emt 0:00:27]} 25. Kg2 {[%emt 0:00:12]} Qg4+ {[%emt 0:00:06]} 26. Kh2 {[%emt 0:00:26]} Qh4+ {[%emt 0:00:27]} 27. Kg2 {[%emt 0:00:12]} Qg4+ {[%emt 0:00:05]} 28. Kh2 {[%emt 0:04:41]} Qh4+ {[%emt 0:00:08]} 29. Kg2 {[%emt 0:00:04]} Qg4+ {[%emt 0:00:19]} 30. Kh2 {[%emt 0:00:05]} Qh4+ {[%emt 0:00:06]} 1/2-1/2

[Event "EYCC Girls U14 2018"]
[Site "Riga"]
[Date "2018.08.21"]
[Round "2"]
[White "Katter, Katharina"]
[Black "Dylag, Emilia"]
[Result "1/2-1/2"]
[ECO "B51"]
[WhiteElo "1830"]
[BlackElo "2095"]
[Annotator "NA RC"]
[PlyCount "97"]
[EventDate "2018.08.20"]
[EventType "swiss"]
[EventCountry "LAT"]
[SourceTitle "playchess.com"]
[Source "ChessBase"]
[SourceQuality "1"]
[TimeControl "40/5400+30:1800+30"]

1. e4 {[%emt 0:00:00]} c5 {[%emt 0:00:00]} 2. Nf3 {[%emt 0:00:00]} d6 {[%emt 0:00:00]} 3. Bb5+ {[%emt 0:00:00]} Nd7 {[%emt 0:00:07]} 4. O-O {[%emt 0:00:32]} Ngf6 {[%emt 0:01:45]} 5. d4 {[%emt 0:00:58]} cxd4 {[%emt 0:06:19]} 6. Qxd4 {[%emt 0:00:17]} e5 {[%emt 0:01:49]} 7. Qd3 {[%emt 0:06:37]} Be7 {[%emt 0:03:00]} 8. c4 $11 {[%emt 0:02:10]} O-O {[%emt 0:02:28]} 9. Bxd7 {[%emt 0:07:52]} Bxd7 {[%emt 0:05:35]} 10. Nc3 {[%emt 0:00:26]} h6 {[%emt 0:07:31]} 11. h3 {[%emt 0:06:11]} Rc8 {[%emt 0:04:21]} 12. Be3 {[%emt 0:03:47]} Be6 {[%emt 0:06:16]} 13. b3 {[%emt 0:03:25]} a6 {[%emt 0:08:36]} 14. Rac1 {[%emt 0:05:14]} Nd7 {[%emt 0:11:35]} 15. Ne1 {[%emt 0:21:03]} Bg5 {[%emt 0:11:02]} 16. Bxg5 {[%emt 0:08:17]} Qxg5 {[%emt 0:00:09]} 17. Nf3 {[%emt 0:02:46]} Qe7 {[%emt 0:11:05]} 18. Rfd1 {[%emt 0:02:41]} Rc6 {[%emt 0:01:26]} 19. Nd5 {[%emt 0:03:23]} Bxd5 {[%emt 0:01:33]} 20. Qxd5 {[%emt 0:05:34]} Rfc8 {[%emt 0:02:38]} 21. Qd2 {[%emt 0:02:12]} Nf6 {[%emt 0:01:40]} 22. Qe3 {[%emt 0:03:28]} Qc7 {[%emt 0:02:12]} 23. Rd3 {[%emt 0:03:35]} b5 {[%emt 0:01:25]} 24. Nd2 {[%emt 0:01:02]} Nd7 {[%emt 0:02:14]} 25. Rd1 {[%emt 0:01:45]} Qa5 {[%emt 0:01:34]} 26. cxb5 {[%emt 0:01:22]} axb5 {[%emt 0:00:53]} 27. Nf3 {[%emt 0:02:22]} Qa3 {[%emt 0:02:28]} 28. R3d2 {[%emt 0:01:31]} Nf6 {[%emt 0:00:59]} 29. Qe2 {[%emt 0:00:41]} Qb4 {[%emt 0:00:18]} 30. Re1 {[%emt 0:01:02]} Rc1 {[%emt 0:00:48]} 31. Rxc1 {[%emt 0:02:02]} Rxc1+ {[%emt 0:00:03]} 32. Rd1 {[%emt 0:00:10]} Rxd1+ {[%emt 0:01:31]} 33. Qxd1 {[%emt 0:00:05]} Nxe4 {[%emt 0:00:11]} 34. a4 {[%emt 0:00:59]} bxa4 {[%emt 0:00:40]} 35. bxa4 {[%emt 0:00:04]} Nc3 {[%emt 0:00:35]} 36. Qc2 {[%emt 0:00:29]} g6 {[%emt 0:01:38]} 37. Qd2 {[%emt 0:00:30]} Kg7 {[%emt 0:00:45]} 38. Qe1 {[%emt 0:00:39]} Qc5 {[%emt 0:00:28]} 39. Qa1 {[%emt 0:00:40]} Ne2+ {[%emt 0:01:04]} 40. Kf1 {[%emt 0:00:00]} Nc3 {[%emt 0:00:00]} 41. Kg1 {[%emt 0:05:27]} Ne4 {[%emt 0:12:00]} 42. Qa2 {[%emt 0:00:59]} Qc1+ {[%emt 0:09:57]} 43. Kh2 {[%emt 0:00:32]} Qf1 {[%emt 0:03:23]} 44. Qd5 {[%emt 0:09:03]} Nxf2 {[%emt 0:01:31]} 45. Nxe5 {[%emt 0:07:02]} dxe5 {[%emt 0:00:47]} 46. Qxe5+ {[%emt 0:00:08]} Kh7 {[%emt 0:00:10]} 47. Qf4 {[%emt 0:00:48]} Kg8 {[%emt 0:04:12]} 48. Qb8+ {[%emt 0:02:29]} Kh7 {[%emt 0:01:33]} 49. Qf4 {[%emt 0:00:22]} 1/2-1/2

[Event "EYCC Girls U14 2018"]
[Site "Riga"]
[Date "2018.08.21"]
[Round "2"]
[White "Hakobyan, Astghik"]
[Black "Krasteva, Beloslava"]
[Result "0-1"]
[ECO "B50"]
[WhiteElo "1820"]
[BlackElo "2086"]
[Annotator "NA"]
[PlyCount "134"]
[EventDate "2018.08.20"]
[EventType "swiss"]
[EventCountry "LAT"]
[SourceTitle "playchess.com"]
[Source "ChessBase"]
[SourceQuality "1"]
[TimeControl "40/5400+30:1800+30"]

1. e4 {[%emt 0:00:00]} c5 {[%emt 0:00:00]} 2. Nf3 {[%emt 0:00:00]} d6 {[%emt 0:00:00]} 3. Nc3 {[%emt 0:00:00]} Nf6 {[%emt 0:01:25]} 4. e5 {[%emt 0:00:00]} dxe5 {[%emt 0:02:23]} 5. Nxe5 {[%emt 0:00:00]} Nbd7 {[%emt 0:04:19]} 6. d4 {[%emt 0:00:10]} e6 {[%emt 0:02:56]} 7. Bb5 {[%emt 0:01:26]} a6 {[%emt 0:02:29] LiveBook: 37 Games} 8. Bxd7+ $11 {[%emt 0:00:23]} Nxd7 {[%emt 0:01:19]} 9. Qf3 {[%emt 0:01:04]} Qe7 {[%emt 0:13:50]} 10. Ne4 {[%emt 0:05:07]} cxd4 {[%emt 0:02:08]} 11. Bf4 {[%emt 0:17:31]} Nxe5 {[%emt 0:09:17]} 12. Bxe5 {[%emt 0:00:14]} Qd8 {[%emt 0:02:14]} 13. O-O-O {[%emt 0:00:36]} Qd5 {[%emt 0:07:43]} 14. Bxd4 {[%emt 0:04:30]} Qxa2 {[%emt 0:00:50]} 15. Bxg7 {[%emt 0:14:01]} Bxg7 {[%emt 0:00:49]} 16. Nd6+ {[%emt 0:00:06]} Kd8 {[%emt 0:00:28]} 17. Nf5+ {[%emt 0:02:22]} Kc7 {[%emt 0:03:20]} 18. Qg3+ {[%emt 0:07:10]} e5 {[%emt 0:04:03]} 19. Qc3+ {[%emt 0:02:43]} Kb8 {[%emt 0:02:19]} 20. Nxg7 {[%emt 0:00:07]} f6 {[%emt 0:02:10]} 21. Qf3 {[%emt 0:14:16]} Qa1+ {[%emt 0:07:38]} 22. Kd2 {[%emt 0:00:05]} Rd8+ {[%emt 0:01:23]} 23. Ke2 {[%emt 0:00:36]} Rxd1 {[%emt 0:00:22]} 24. Rxd1 {[%emt 0:00:06]} Qxb2 {[%emt 0:00:11]} 25. Qxf6 {[%emt 0:00:55]} Qxc2+ {[%emt 0:01:02]} 26. Ke1 {[%emt 0:00:06]} Qe4+ {[%emt 0:01:30]} 27. Kf1 {[%emt 0:00:09]} Ka7 {[%emt 0:00:26]} 28. Re1 {[%emt 0:06:11]} Qc4+ {[%emt 0:01:57]} 29. Kg1 {[%emt 0:00:06]} Bd7 {[%emt 0:03:01]} 30. Qxe5 {[%emt 0:06:57]} Rg8 {[%emt 0:02:32]} 31. Qe3+ Ka8 {[%emt 0:00:37]} 32. Nh5 {[%emt 0:03:16]} Bc6 {[%emt 0:04:03]} 33. Ng3 {[%emt 0:00:58]} Qd5 {[%emt 0:00:41]} 34. f3 {[%emt 0:00:36]} h5 {[%emt 0:00:47]} 35. Ne4 {[%emt 0:02:59]} Re8 {[%emt 0:01:17]} 36. Qc3 {[%emt 0:02:25]} h4 {[%emt 0:01:19]} 37. Rc1 {[%emt 0:03:22]} Rd8 {[%emt 0:04:43]} 38. Nf2 {[%emt 0:06:28]} Rg8 {[%emt 0:03:30]} 39. Rd1 {[%emt 0:01:03]} Qg5 {[%emt 0:01:23]} 40. Ng4 {[%emt 0:00:00]} h3 {[%emt 0:00:00]} 41. Ra1 {[%emt 0:04:02]} Qd5 {[%emt 0:10:14]} 42. gxh3 {[%emt 0:08:46]} Qxf3 {[%emt 0:01:42]} 43. Qxf3 {[%emt 0:00:19]} Bxf3 {[%emt 0:00:07]} 44. Ra4 {[%emt 0:05:16]} Ka7 {[%emt 0:02:40]} 45. Kf2 {[%emt 0:01:05]} Bc6 {[%emt 0:01:58]} 46. Ra1 {[%emt 0:01:21]} b5 {[%emt 0:01:00]} 47. Ne5 {[%emt 0:00:13]} Bb7 {[%emt 0:00:37]} 48. h4 {[%emt 0:02:30]} Rg2+ {[%emt 0:01:21]} 49. Ke3 {[%emt 0:00:05]} Rxh2 {[%emt 0:00:15]} 50. Ng6 {[%emt 0:00:05]} Kb6 {[%emt 0:00:56]} 51. Kf4 {[%emt 0:00:38]} b4 {[%emt 0:00:51]} 52. Kg5 {[%emt 0:02:07]} a5 {[%emt 0:02:12]} 53. Ne5 {[%emt 0:01:11]} Kb5 {[%emt 0:05:13]} 54. h5 {[%emt 0:01:33]} b3 {[%emt 0:00:54]} 55. Ng4 {[%emt 0:03:15]} b2 {[%emt 0:01:57]} 56. Re1 {[%emt 0:01:13]} Re2 {[%emt 0:01:35]} 57. Rxe2 {[%emt 0:02:14]} b1=Q {[%emt 0:00:09]} 58. Re5+ {[%emt 0:00:13]} Kb6 {[%emt 0:00:24]} 59. h6 {[%emt 0:00:36]} Be4 {[%emt 0:03:46]} 60. Re6+ {[%emt 0:00:36]} Kc5 {[%emt 0:01:58]} 61. Kf6 {[%emt 0:01:40]} Qf1+ {[%emt 0:00:45]} 62. Kg7 {[%emt 0:01:21]} Qg2 {[%emt 0:01:17]} 63. Re5+ {[%emt 0:00:22]} Kd6 {[%emt 0:00:14]} 64. Rg5 {[%emt 0:00:06]} Qb2+ {[%emt 0:00:32]} 65. Kg8 {[%emt 0:01:56]} Qb8+ {[%emt 0:00:28]} 66. Kg7 {[%emt 0:00:37]} Qc7+ {[%emt 0:00:08]} 67. Kh8 {[%emt 0:00:07]} Qh7# {[%emt 0:00:05]} 0-1

[Event "EYCC Girls U14 2018"]
[Site "Riga"]
[Date "2018.08.21"]
[Round "2"]
[White "Bellahcene, Sofia"]
[Black "Allahverdiyeva, Ayan"]
[Result "0-1"]
[ECO "C03"]
[WhiteElo "1813"]
[BlackElo "2046"]
[Annotator "NA RC"]
[PlyCount "35"]
[EventDate "2018.08.20"]
[EventType "swiss"]
[EventCountry "LAT"]
[SourceTitle "playchess.com"]
[Source "ChessBase"]
[SourceQuality "1"]
[TimeControl "40/5400+30:1800+30"]

1. e4 {[%emt 0:00:00]} e6 {[%emt 0:00:36]} 2. d4 {[%emt 0:01:07]} d5 {[%emt 0:00:05]} 3. Nd2 {[%emt 0:01:26]} Be7 {[%emt 0:00:50]} 4. e5 {[%emt 0:04:39]} c5 {[%emt 0:00:50]} 5. c3 {[%emt 0:01:46] LiveBook: 218 Games} Nc6 {[%emt 0:00:54]} 6. Qg4 {[%emt 0:06:10]} Kf8 $15 {[%emt 0:03:19]} 7. Ndf3 {[%emt 0:05:25]} cxd4 {[%emt 0:07:10]} 8. cxd4 {[%emt 0:02:27]} Nb4 {[%emt 0:00:44]} 9. Bd2 {[%emt 0:12:10]} Nc2+ {[%emt 0:00:49]} 10. Kd1 {[%emt 0:02:04]} Nxa1 {[%emt 0:00:05]} 11. Bd3 {[%emt 0:02:23]} f5 {[%emt 0:03:48]} 12. Qg3 {[%emt 0:04:10]} Qe8 {[%emt 0:01:31]} 13. b3 {[%emt 0:12:18]} a5 {[%emt 0:02:01]} 14. Kc1 {[%emt 0:10:31]} a4 {[%emt 0:02:32]} 15. b4 {[%emt 0:02:42]} Nb3+ {[%emt 0:04:35]} 16. axb3 {[%emt 0:03:27]} axb3 {[%emt 0:00:05]} 17. Bc3 {[%emt 0:05:23]} Qc6 {[%emt 0:01:14]} 18. Kb2 {[%emt 0:03:11]} 0-1